bitfinex-derivatives/quotes_ETHF0:USTF0_20251117
["timestamp","ask_amount","ask_price","bid_price","bid_amount"]
[1763398259128,0.5465,3119.4,3119.0,3.2078]
[1763398259321,0.5465,3119.4,3118.6,3.21150928]
[1763398259523,0.55009736,3119.4,3118.6,3.21150928]
[1763398260232,3.2078,3119.0,3118.6,3.21150928]
[1763398260426,0.55009736,3119.4,3118.6,3.21150928]
[1763398260622,0.00359736,3119.4,3119.2,3.2078]
[1763398260835,3.2078,3120.9,3119.2,14.7718]
[1763398261038,0.25012305,3122.3,3120.8,3.2078]
[1763398261039,3.2078,3122.2,3120.8,3.2078]
[1763398261235,0.5465,3122.1,3121.2,3.2078]
[1763398261430,0.5465,3122.1,3121.8,3.2078]
[1763398261730,3.2078,3121.9,3121.8,0.0033842]
[1763398261939,3.2078,3121.9,3121.2,3.2078]
[1763398262137,0.54947394,3122.1,3121.6,3.2078]
[1763398262430,3.7543,3123.0,3122.0,3.2078]
[1763398262626,0.5465,3122.1,3122.0,3.2078]
[1763398262826,3.7543,3123.0,3122.0,3.2078]
[1763398263027,3.7543,3123.0,3121.3,40.8]
[1763398263028,0.5465,3123.0,3122.6,3.2078]
[1763398263227,0.00401385,3123.0,3122.6,3.21039473]
[1763398263430,0.55051385,3123.0,3122.6,0.00259473]
[1763398263632,3.2078,3122.9,3122.2,3.2078]
[1763398263931,0.00401385,3123.0,3122.6,3.2078]
[1763398264132,1.864,3125.2,3122.6,3.2078]
[1763398264133,3.2078,3125.0,3122.7,0.65]
[1763398264334,3.2078,3125.8,3124.6,3.2078]
[1763398264631,3.7543,3125.7,3125.0,3.2078]
[1763398265027,0.55049973,3125.7,3125.0,3.21095429]
[1763398265228,0.00399973,3125.7,3125.4,3.2078]
[1763398265424,3.2078,3126.8,3125.4,3.2078]
[1763398265625,3.2078,3126.8,3126.1,3.2078]
[1763398265832,3.2078,3126.8,3125.1,40.8]
[1763398266036,3.2078,3127.9,3126.7,3.2078]
[1763398266240,0.26126379,3128.8,3127.6,3.2078]
[1763398266537,2.53260815,3129.4,3128.4,3.2078]
[1763398266731,1.0,3130.0,3128.4,2.088]
[1763398266931,1.0,3130.0,3129.6,3.2078]
[1763398267428,6.0,3129.9,3129.5,2.39276707]
[1763398267626,4.2078,3130.0,3128.5,3.2078]
[1763398267627,0.5465,3129.5,3128.5,3.2078]
[1763398267936,3.2078,3128.8,3127.9,3.2078]
[1763398268131,0.0032582,3128.8,3128.7,0.00479402]
[1763398268437,0.5465,3128.4,3127.9,0.00398296]
[1763398268637,3.2078,3128.1,3127.0,3.2078]
[1763398268839,0.0032582,3128.8,3128.0,3.2078]
[1763398269024,3.2078,3129.7,3128.5,3.2078]
[1763398269231,0.5465,3132.8,3129.3,3.2078]
[1763398269232,3.2078,3132.1,3129.3,3.2078]
[1763398269429,3.2078,3132.1,3128.2,1.66]
[1763398269430,3.2078,3132.1,3130.6,3.2078]
[1763398269731,3.2078,3132.1,3128.2,1.66]
[1763398269732,3.2078,3131.5,3130.9,3.2078]
[1763398269932,0.00473842,3131.5,3130.8,2.40305631]
[1763398270130,0.00727445,3131.5,3131.2,3.2078]
[1763398270841,9.2078,3131.4,3130.8,0.00227312]
[1763398271041,3.21507445,3131.5,3130.8,0.00479402]
[1763398271340,0.00727445,3131.5,3131.4,3.2078]
[1763398271536,0.5465,3132.8,3131.4,6.4006]
[1763398271834,0.0346,3133.7,3132.2,3.2078]
[1763398272037,3.2078,3133.6,3132.4,3.2078]
[1763398272237,0.0346,3133.7,3133.3,3.2078]
[1763398272636,0.03856462,3133.7,3133.3,3.21054405]
[1763398272832,3.2078,3133.5,3133.3,0.00274405]
[1763398273038,6.03856462,3133.7,3133.3,0.00274405]
[1763398273235,3.2078,3135.1,3133.6,3.2078]
[1763398273440,3.2078,3135.1,3134.6,3.2078]
[1763398273737,3.2078,3135.1,3134.1,3.2078]
[1763398273942,3.7543,3134.3,3133.3,0.00274405]
[1763398274128,3.2078,3134.0,3133.3,0.00274405]
[1763398274329,0.00343193,3134.0,3133.6,3.2078]
[1763398274731,9.2078,3133.9,3133.3,0.00274405]
[1763398274935,0.00343193,3134.0,3133.2,0.00479402]
[1763398275141,3.2078,3133.9,3132.9,3.2078]
[1763398275339,0.00343193,3134.0,3132.9,3.2078]
[1763398275539,0.00343193,3134.0,3133.5,3.2078]
[1763398275842,0.00343193,3134.0,3133.5,3.21063984]
[1763398276039,0.00343193,3134.0,3133.9,3.2078]
[1763398276334,3.2078,3134.9,3133.9,3.2078]
[1763398276535,3.2078,3135.2,3133.5,0.00283984]
[1763398276741,3.7543,3134.3,3133.5,0.00283984]
[1763398277247,0.5465,3133.0,3132.6,3.2078]
[1763398277741,3.2078,3133.8,3132.6,3.2078]
[1763398277938,3.2078,3133.8,3133.1,3.2078]
[1763398278136,0.00371064,3133.8,3133.7,3.2078]
[1763398278333,3.2078,3134.6,3133.7,3.2078]
[1763398278529,3.2078,3135.3,3134.5,3.2078]
[1763398278933,52.10126469,3136.8,3134.9,3.2078]
[1763398278934,3.2078,3135.7,3134.9,3.2078]
[1763398279134,3.2078,3135.7,3134.5,3.2078]
[1763398279336,0.7241,3134.4,3134.2,3.2078]
[1763398279943,6.0,3134.3,3134.0,0.00478552]
[1763398280248,3.2078,3134.2,3133.6,3.2078]
[1763398280740,6.0,3134.1,3133.2,3.2078]
[1763398280945,3.2078,3133.8,3133.2,3.2078]
[1763398281340,3.21258552,3133.8,3133.2,3.21258552]
[1763398282252,0.7241,3133.2,3132.8,3.2078]
[1763398282641,0.7241,3134.4,3133.2,3.2078]
[1763398282951,3.2078,3135.0,3134.3,3.2078]
[1763398283145,3.2078,3135.4,3134.7,3.2078]
[1763398283347,0.00336946,3135.0,3134.7,3.2078]
[1763398283651,0.00478552,3135.2,3134.7,3.2078]
[1763398283950,0.00478552,3135.2,3135.1,3.2078]
[1763398284541,0.5465,3135.6,3135.1,3.2078]
[1763398284736,0.5465,3136.8,3135.5,3.2078]
[1763398284938,0.5465,3136.8,3136.4,3.2078]
[1763398285146,3.2078,3136.7,3135.3,3.2078]
[1763398285342,0.7241,3135.6,3135.3,3.2078]
[1763398285544,0.7241,3135.6,3135.1,0.00478552]
[1763398285747,0.72713837,3135.6,3135.3,3.21036185]
[1763398286061,0.72713837,3135.6,3135.3,0.00256185]
[1763398286352,6.0,3135.5,3135.1,0.00478552]
[1763398286653,0.72713837,3135.6,3135.1,0.00478552]
[1763398286846,3.93493837,3135.6,3135.1,0.00478552]
[1763398287156,3.2078,3135.2,3129.2,0.78135589]
[1763398287342,0.7203,3134.4,3133.4,3.2078]
[1763398287551,3.2078,3134.9,3134.0,3.2078]
[1763398287848,0.72713837,3135.6,3132.8,0.00277657]
[1763398287849,3.2078,3135.1,3134.1,3.2078]
[1763398288150,0.00478552,3134.9,3134.3,0.00478552]
[1763398288345,0.7203,3134.4,3134.3,0.00478552]
[1763398288743,6.7203,3134.4,3134.3,0.00478552]
[1763398288946,6.7203,3134.4,3132.8,0.00277657]
[1763398288947,9.9281,3134.4,3133.3,3.2078]
[1763398289142,3.2078,3133.9,3133.3,3.2078]
[1763398289858,0.7203,3134.4,3133.7,3.2078]
[1763398290253,3.2078,3134.2,3133.3,0.00478552]
[1763398290552,0.00478552,3134.9,3134.1,3.2078]
[1763398290755,0.00478552,3134.9,3134.7,3.2078]
[1763398290949,0.00478552,3134.9,3134.1,3.2078]
[1763398291254,0.7203,3134.4,3133.7,3.2078]
[1763398291553,0.7203,3133.2,3132.8,0.00277657]
[1763398291745,0.72364507,3133.2,3132.8,0.00277657]
[1763398291946,3.2078,3133.0,3132.8,0.00277657]
[1763398292144,3.2078,3133.0,3132.1,3.2078]
[1763398292345,0.72364507,3133.2,3131.5,3.2078]
[1763398292346,0.7203,3131.7,3131.5,3.2078]
[1763398292550,3.2078,3131.6,3130.6,3.2078]
[1763398292754,0.7203,3130.8,3130.6,3.2078]
[1763398293147,3.2078,3130.7,3130.6,0.0034264]
[1763398293350,3.2078,3130.7,3130.6,2.64e-05]
[1763398293645,9.2078,3130.7,3130.4,0.00478552]
[1763398293850,3.2078,3130.7,3129.2,3.2078]
[1763398294052,0.7203,3129.6,3128.7,3.2078]
[1763398294459,3.93081587,3130.8,3129.5,3.2078]
[1763398294659,0.7203,3131.7,3130.7,3.2078]
[1763398294957,3.2078,3132.4,3131.6,3.2078]
[1763398295156,0.00479333,3131.5,3129.8,0.00479333]
[1763398295356,0.7203,3132.0,3131.4,3.2078]
[1763398295657,0.72324367,3132.0,3131.7,0.00479333]
[1763398296850,3.93104367,3132.0,3131.7,0.00479333]
[1763398297052,3.93104367,3132.0,3131.4,0.00346736]
[1763398297760,3.93104367,3132.0,3131.3,3.2078]
[1763398298064,3.2078,3131.4,3131.3,0.00479333]
[1763398298456,9.2078,3131.4,3130.1,3.2078]
[1763398298760,0.00294367,3132.0,3131.3,3.2078]
[1763398298954,0.7203,3133.2,3131.9,3.2078]
[1763398299169,0.7203,3133.2,3132.5,3.2078]
[1763398299465,3.2078,3133.1,3132.5,3.2078]
[1763398299668,0.7203,3133.2,3132.5,3.2078]
[1763398299966,0.72828522,3133.2,3132.9,3.2078]
[1763398300160,3.2078,3134.1,3133.0,6.0]
[1763398300362,3.2078,3134.1,3133.6,3.2078]
[1763398301065,3.21010926,3134.1,3133.1,3.2078]
[1763398301265,0.7203,3133.2,3133.1,3.2078]
[1763398301567,0.7203,3133.2,3132.7,3.2078]
[1763398302258,3.2078,3132.9,3131.7,3.2078]
[1763398302458,3.2078,3132.8,3131.7,3.2078]
[1763398302662,3.9281,3133.2,3132.1,3.2078]
[1763398303363,3.2078,3132.6,3132.3,0.00479333]
[1763398304264,3.21259333,3133.0,3132.3,0.00479333]
[1763398305060,0.00479333,3133.0,3132.6,3.2078]
[1763398305959,3.2078,3132.7,3132.3,0.00479333]
[1763398307762,0.00479333,3133.0,3132.3,3.21259333]
[1763398307963,3.21259333,3133.0,3132.3,3.21259333]
[1763398308667,3.2078,3132.6,3132.3,0.00479333]
[1763398308963,3.2078,3132.6,3132.1,0.00259107]
[1763398309168,3.2078,3132.2,3130.5,3.2078]
[1763398309358,3.2078,3131.1,3130.1,3.2078]
[1763398309554,1.07527922,3133.1,3128.8,11.5]
[1763398309555,3.2078,3131.4,3130.6,3.2078]
[1763398309758,3.2078,3131.0,3130.1,3.2078]
[1763398309959,0.00479333,3130.9,3130.2,0.00479333]
[1763398310166,0.00479333,3130.9,3130.2,0.00858]
[1763398310167,3.2078,3130.5,3130.2,0.00858]
[1763398311771,3.2078,3130.5,3129.7,3.2078]
[1763398312859,3.2078,3130.0,3129.8,0.00320077]
[1763398313164,3.2078,3130.0,3129.7,0.00294147]
[1763398313965,3.2078,3130.0,3128.8,3.2078]
[1763398314157,3.2078,3129.9,3128.8,3.2078]
[1763398314357,3.2078,3130.5,3129.2,3.2078]
[1763398314557,0.00780338,3130.9,3129.2,3.2078]
[1763398314558,3.2078,3130.1,3129.2,3.2078]
[1763398314762,3.2078,3130.8,3129.6,3.2078]
[1763398314973,3.2078,3130.8,3129.6,3.21170081]
[1763398315272,3.2078,3130.8,3130.0,3.2078]
[1763398315867,0.00780338,3130.9,3130.4,3.2078]
[1763398316172,3.2078,3132.2,3130.8,3.2078]
[1763398316363,3.2078,3132.2,3131.4,3.2078]
[1763398316968,3.2078,3132.8,3131.8,3.2078]
[1763398317271,3.2078,3132.8,3132.0,0.00479333]
[1763398317272,0.00479333,3132.6,3132.0,0.00479333]
[1763398317572,0.00479333,3132.6,3132.2,3.2078]
[1763398317963,3.2078,3134.0,3132.2,12.3998]
[1763398318164,3.2078,3134.0,3132.0,0.00479333]
[1763398318165,3.2078,3134.0,3133.0,3.2078]
[1763398318365,3.2078,3133.1,3132.0,0.00479333]
[1763398318574,3.2078,3133.1,3132.3,3.2078]
[1763398319075,0.00479333,3133.0,3132.3,3.2078]
[1763398319283,0.00479333,3133.0,3132.0,0.00479333]
[1763398319967,3.2078,3132.7,3132.0,0.00479333]
[1763398320270,3.2078,3132.1,3131.1,3.2078]
[1763398320574,0.00479333,3133.0,3131.1,3.2078]
[1763398320575,3.2078,3132.2,3131.1,3.2078]
[1763398320772,3.2078,3132.8,3131.7,3.2078]
[1763398320971,0.00302405,3133.1,3132.1,3.2078]
[1763398321171,0.00302405,3133.1,3132.5,3.2078]
[1763398321377,3.2078,3133.8,3132.9,3.2078]
[1763398321567,4.28307922,3135.7,3133.7,3.2078]
[1763398321874,3.2078,3135.1,3134.2,3.2078]
[1763398322073,3.2078,3134.3,3133.0,3.21259333]
[1763398322265,3.2078,3133.9,3133.3,0.00476759]
[1763398322467,3.21162179,3133.9,3133.3,0.0084823]
[1763398322670,3.21162179,3133.9,3132.1,3.2078]
[1763398322671,3.2078,3133.5,3132.1,3.2078]
[1763398322977,0.00382179,3133.9,3131.7,3.2078]
[1763398322978,3.2078,3132.4,3131.7,3.2078]
[1763398323269,3.2078,3131.8,3130.7,3.2078]
[1763398323469,3.2078,3131.0,3129.6,3.2078]
[1763398323662,3.2078,3130.6,3129.6,3.21154141]
[1763398323861,3.2125856,3130.6,3129.6,3.21154141]
[1763398324065,3.2078,3130.2,3129.6,0.00374141]
[1763398324478,3.2125856,3130.6,3129.6,3.21154141]
[1763398324663,3.2125856,3130.6,3129.6,0.00374141]
[1763398324863,3.2078,3129.8,3129.6,0.00374141]
[1763398325066,0.7225,3130.4,3129.6,0.00374141]
[1763398325267,0.7225,3130.4,3129.9,3.2078]
[1763398325674,0.0047856,3130.6,3129.9,3.2078]
[1763398325880,0.7225,3130.4,3129.6,0.00374141]
[1763398326171,3.2078,3129.9,3129.0,3.2078]
[1763398326476,0.7225,3129.6,3129.0,3.2078]
[1763398326674,3.2078,3130.3,3129.0,3.2078]
[1763398326972,3.2078,3130.3,3129.8,3.2078]
[1763398327271,3.2078,3130.3,3129.8,3.21060242]
[1763398327473,0.7225,3130.4,3129.8,3.21060242]
[1763398327774,3.9303,3130.4,3129.8,3.21060242]
[1763398328166,0.7225,3130.4,3129.8,3.21060242]
[1763398328366,0.0047856,3130.6,3129.8,3.21060242]
[1763398328564,3.2078,3132.4,3130.3,3.2078]
[1763398328763,1.79777922,3132.8,3131.9,3.2078]
[1763398328764,3.9303,3132.8,3131.9,3.2078]
[1763398328968,0.7225,3132.8,3132.3,3.2078]
[1763398329170,3.2078,3134.2,3132.7,3.2078]
[1763398329366,1.61291883,3135.5,3131.6,7.07531356]
[1763398329367,3.9303,3134.7,3133.5,3.2078]
[1763398329568,3.2078,3134.3,3133.8,0.00478567]
[1763398330375,0.00478567,3134.4,3134.2,3.2078]
[1763398330876,3.2078,3135.6,3134.2,3.2078]
[1763398331069,3.2078,3135.6,3133.8,0.00478567]
[1763398331070,3.2078,3135.6,3134.9,3.2078]
[1763398331265,3.2078,3136.0,3134.9,3.2078]
[1763398331568,0.7225,3136.5,3135.3,3.2078]
[1763398331768,0.00478567,3136.2,3135.6,3.21258567]
[1763398331975,0.00251023,3136.5,3136.1,3.2078]
[1763398332169,0.72501023,3136.5,3136.1,3.21145708]
[1763398332672,0.72501023,3136.5,3136.1,0.00365708]
[1763398332875,0.09064158,3137.3,3136.2,3.188]
[1763398333173,3.2078,3138.2,3137.2,3.2078]
[1763398333690,0.7225,3137.0,3136.1,0.00365708]
[1763398334177,0.72531245,3137.0,3136.3,3.2078]
[1763398334471,3.2078,3136.7,3136.1,0.00365708]
[1763398334684,3.2078,3136.3,3136.1,0.00478567]
[1763398334878,0.72531245,3137.0,3136.1,0.00478567]
[1763398335071,0.00478567,3138.0,3136.7,3.2078]
[1763398335377,0.0346,3138.7,3137.8,3.2078]
[1763398335583,3.2078,3139.6,3138.5,3.2078]
[1763398335877,1.0,3140.0,3139.3,3.2078]
[1763398336178,1.00345842,3140.0,3139.8,3.2078]
[1763398336377,1.00823602,3140.0,3139.9,3.2078]
[1763398336572,1.00823602,3140.0,3139.3,3.21557514]
[1763398336771,1.00823602,3140.0,3139.7,3.2078]
[1763398336979,1.00823602,3140.0,3139.3,3.21557514]
[1763398337180,4.21603602,3140.0,3139.3,3.21557514]
[1763398337379,3.9442,3139.4,3138.4,40.8]
[1763398337676,3.9442,3139.4,3138.1,3.2078]
[1763398337677,3.2078,3138.9,3138.1,3.2078]
[1763398337871,3.2078,3139.4,3138.1,3.2078]
[1763398338177,3.2078,3138.8,3138.1,3.2078]
[1763398338374,0.7364,3139.4,3138.1,3.21138617]
[1763398338572,0.87966791,3140.0,3138.5,3.2078]
[1763398338774,0.7225,3141.0,3139.9,3.2078]
[1763398338979,0.7225,3141.0,3140.0,3.2078]
[1763398339280,3.2078,3142.4,3140.9,3.2078]
[1763398339584,3.2078,3142.4,3141.7,3.2078]
[1763398339773,0.00362076,3142.0,3141.9,3.2078]
[1763398339970,0.7364,3141.6,3139.9,0.00360934]
[1763398340274,0.7364,3141.6,3140.7,3.2078]
[1763398340575,0.7364,3140.5,3140.4,0.0047776]
[1763398340776,0.7364,3140.5,3140.4,3.2125776]
[1763398340968,1.85441586,3140.5,3140.4,3.2125776]
[1763398341170,1.11801586,3140.4,3139.9,3.21140934]
[1763398341372,0.7364,3140.5,3139.9,3.21140934]
[1763398341373,1.85441586,3140.5,3139.9,3.21140934]
[1763398341676,0.7364,3140.5,3140.3,3.2078]
[1763398341878,1.85441586,3140.5,3140.3,3.2078]
[1763398342173,0.0047776,3140.7,3140.3,3.2078]
[1763398342374,0.7364,3140.5,3140.3,3.2078]
[1763398342780,1.85441586,3140.5,3140.3,3.2078]
[1763398343276,1.11801586,3140.4,3140.3,3.2078]
[1763398343481,0.7364,3140.5,3139.9,0.00360934]
[1763398343780,0.7364,3140.5,3140.4,3.2078]
[1763398343974,1.85441586,3140.5,3140.4,3.2078]
[1763398344371,1.11801586,3140.5,3140.4,3.2078]
[1763398344570,0.0047776,3140.8,3140.4,12.3918]
[1763398344772,0.00362076,3142.0,3140.5,6.0]
[1763398345098,3.2078,3143.5,3141.9,3.2078]
[1763398345386,3.2078,3143.1,3142.3,3.2078]
[1763398345768,0.0047776,3143.0,3142.4,40.8047776]
[1763398346276,0.7364,3142.7,3142.4,40.80826224]
[1763398346477,0.7364,3142.7,3141.9,3.2078]
[1763398346678,0.7364,3142.7,3142.4,3.2078]
[1763398346875,0.00776416,3143.0,3142.4,3.2078]
[1763398347272,0.9396,3142.7,3142.4,3.2078]
[1763398347580,0.9396,3142.7,3142.4,0.00246092]
[1763398347581,4.1474,3142.7,3142.4,0.00246092]
[1763398347783,4.1474,3142.7,3142.2,0.0047776]
[1763398347980,0.9396,3141.6,3141.1,3.2078]
[1763398348188,4.1474,3141.6,3141.1,3.2078]
[1763398348381,4.1474,3141.6,3141.1,3.18579348]
[1763398348575,0.9396,3142.7,3141.1,6.36899348]
[1763398348887,0.9396,3142.7,3141.6,0.00477506]
[1763398348888,3.2078,3142.2,3141.6,0.00477506]
[1763398349479,3.2078,3141.8,3141.6,0.00477506]
[1763398349788,0.9396,3141.6,3141.1,0.0030649]
[1763398349987,0.9396,3140.5,3139.9,3.2078]
[1763398350590,3.2078,3140.2,3139.4,3.2078]
[1763398350880,0.0047776,3140.1,3139.4,3.21025035]
[1763398351292,3.2078,3139.7,3139.4,0.00245035]
[1763398351482,0.0047776,3140.1,3139.4,3.21025035]
[1763398351883,3.2078,3139.5,3139.4,0.00245035]
[1763398352084,9.2078,3139.5,3138.4,3.2078]
[1763398352386,3.2078,3139.1,3138.4,3.2078]
[1763398352601,3.2078,3138.6,3137.8,3.2078]
[1763398353091,0.9396,3138.0,3137.8,0.00258853]
[1763398353286,0.94204879,3138.0,3136.4,3.2078]
[1763398353594,3.2078,3137.3,3136.4,3.2078]
[1763398353790,0.9396,3136.8,3136.4,3.2078]
[1763398354289,4.1474,3136.8,3136.4,0.0034398]
[1763398354898,4.1474,3136.8,3136.0,1.0]
[1763398355195,0.9396,3135.6,3135.1,3.2078]
[1763398355490,0.9396,3135.6,3134.9,3.2078]
[1763398355687,3.2078,3135.0,3134.1,3.2078]
[1763398355895,3.21183466,3135.0,3134.1,3.2117105]
[1763398356690,0.9396,3134.4,3134.1,3.2117105]
[1763398357294,3.21183466,3135.0,3134.1,3.2117105]
[1763398357593,0.00403466,3135.0,3134.3,3.2078]
[1763398358699,3.2078,3134.9,3134.3,3.2078]
[1763398358900,0.9396,3134.4,3134.3,3.2078]
[1763398359198,3.2078,3137.6,3135.1,3.2078]
[1763398359393,3.2078,3138.2,3137.4,3.2078]
[1763398359599,3.2078,3137.6,3136.8,3.2078]
[1763398359796,3.2078,3137.2,3136.4,3.2078]
[1763398359997,0.9396,3136.8,3136.4,3.21152747]
[1763398360198,0.9396,3136.8,3136.4,0.00372747]
[1763398360388,3.2078,3136.7,3136.4,0.00372747]
[1763398360787,0.9396,3136.8,3136.4,0.00372747]
[1763398361201,0.9396,3136.8,3135.9,3.2078]
[1763398361202,3.2078,3136.7,3135.9,3.2078]
[1763398361797,0.9396,3136.8,3136.3,3.2078]
[1763398362296,0.9396,3136.8,3136.3,3.21181655]
[1763398362696,3.2078,3136.7,3135.4,3.2078]
[1763398362894,3.2078,3136.3,3135.4,3.2078]
[1763398363095,3.2078,3135.8,3134.8,3.2078]
[1763398363294,3.2078,3135.3,3134.3,3.2078]
[1763398363597,0.00478545,3135.1,3134.3,3.21178748]
[1763398364203,3.2078,3134.8,3134.3,3.21178748]
[1763398364399,3.21051191,3134.8,3134.3,3.21178748]
[1763398364999,0.00271191,3134.8,3134.3,3.21178748]
[1763398366001,0.00271191,3134.8,3134.7,3.2078]
[1763398366308,0.00271191,3134.8,3134.3,0.00398748]
[1763398367701,0.00271191,3134.8,3134.6,3.2078]
[1763398368401,3.21051191,3134.8,3134.3,0.00398748]
[1763398368605,3.2078,3134.7,3134.3,0.00398748]
[1763398368997,0.00478545,3135.1,3134.3,3.21178748]
[1763398369194,3.2078,3135.9,3134.7,3.2078]
[1763398369398,3.2078,3135.9,3135.4,3.2078]
[1763398370203,3.21004823,3135.9,3135.4,3.2078]
[1763398370901,3.2078,3135.5,3135.3,0.00478545]
[1763398371309,0.9396,3135.0,3134.3,0.00398748]
[1763398371500,3.2078,3134.5,3134.3,0.00398748]
[1763398371702,0.9396,3135.0,3134.3,0.00398748]
[1763398372102,3.2078,3135.7,3134.7,3.2078]
[1763398373207,0.00224823,3135.9,3135.1,3.2078]
[1763398374809,0.9396,3135.0,3134.3,0.00398748]
[1763398375119,3.2078,3135.8,3134.8,3.2078]
[1763398376008,0.9396,3135.0,3134.8,3.2078]
[1763398376310,3.2078,3134.9,3134.3,3.21178748]
[1763398376708,3.2078,3137.4,3134.9,3.223]
[1763398376905,3.2078,3137.4,3136.5,3.2078]
[1763398377112,0.9232,3137.2,3136.5,3.2078]
[1763398377304,0.9232,3137.2,3136.2,3.2078]
[1763398377699,0.00478545,3137.0,3136.4,0.00478545]
[1763398377903,0.00478545,3137.0,3136.6,3.2078]
[1763398378106,4.07821172,3138.0,3136.6,3.2078]
[1763398378315,4.07821172,3138.0,3137.1,3.2078]
[1763398378812,4.07821172,3138.0,3136.6,3.2078]
[1763398379112,3.2078,3137.1,3136.2,0.00342305]
[1763398379310,0.9232,3136.1,3135.5,3.2078]
[1763398379511,3.2078,3135.6,3133.4,3.2078]
[1763398379709,3.2078,3135.1,3133.9,0.9541]
[1763398380305,3.2078,3134.7,3134.2,0.00478545]
[1763398380609,3.2078,3136.1,3135.0,0.9541]
[1763398380807,3.2078,3136.1,3135.0,4.1619]
[1763398381017,3.2078,3136.1,3135.1,40.8]
[1763398381513,3.2078,3135.6,3135.0,0.9541]
[1763398381713,3.2078,3135.7,3135.1,3.2078]
[1763398381908,3.2078,3135.6,3135.0,0.95888545]
[1763398382617,3.2078,3135.6,3135.0,0.00478545]
[1763398382810,3.2078,3135.1,3135.0,0.00478545]
[1763398383014,3.2078,3135.1,3134.2,3.2078]
[1763398383015,3.21171485,3135.1,3133.9,0.00366864]
[1763398383218,3.2078,3134.6,3133.9,0.00366864]
[1763398383507,0.00391485,3135.1,3134.2,3.2078]
[1763398383718,0.00391485,3135.1,3134.7,3.2078]
[1763398384204,3.2078,3134.8,3133.9,0.00366864]
[1763398384410,3.2078,3134.0,3132.3,0.82131356]
[1763398384608,3.2078,3132.5,3132.0,0.647]
[1763398384809,3.2078,3132.1,3131.0,0.82131356]
[1763398385009,3.2078,3131.2,3130.7,0.82131356]
[1763398385215,1.07527922,3132.7,3131.0,3.2078]
[1763398385415,1.07527922,3132.7,3130.6,0.9541]
[1763398385416,3.2078,3132.4,3131.3,3.2078]
[1763398385710,3.2078,3132.8,3131.7,3.2078]
[1763398385904,3.2078,3132.8,3130.8,0.82131356]
[1763398385905,3.2078,3133.4,3132.1,3.2078]
[1763398386316,3.2078,3133.0,3132.4,0.00478545]
[1763398386516,0.00478545,3133.1,3132.4,0.00478545]
[1763398386716,3.2078,3133.0,3132.4,0.00478545]
[1763398386911,0.00478545,3133.1,3132.4,0.00478545]
[1763398387111,3.2078,3133.0,3132.4,0.00478545]
[1763398387319,3.2078,3132.6,3132.4,0.00478545]
[1763398387818,3.2078,3133.0,3132.4,0.00478545]
[1763398388014,3.2078,3132.6,3132.4,0.00478545]
[1763398388312,0.00478545,3133.1,3132.4,0.00478545]
[1763398388313,3.21258545,3133.1,3132.4,0.00478545]
[1763398389211,3.2078,3132.7,3132.4,0.00478545]
[1763398390518,0.00478545,3133.1,3132.4,0.00478545]
[1763398391419,3.2078,3132.8,3132.4,0.00478545]
[1763398392015,0.00298111,3133.4,3132.6,3.2078]
[1763398392217,3.2078,3134.6,3133.3,3.2078]
[1763398392418,3.2078,3134.6,3133.8,3.2078]
[1763398392614,3.2078,3134.6,3133.4,3.2078]
[1763398392821,3.2078,3135.1,3133.8,3.2078]
[1763398393022,0.00478545,3134.8,3134.1,0.00478545]
[1763398393219,0.00842918,3134.8,3134.1,0.0085259]
[1763398393719,3.2078,3134.7,3134.1,0.0085259]
[1763398394117,3.2078,3134.2,3134.1,0.0085259]
[1763398394309,0.00842918,3134.8,3134.1,0.0085259]
[1763398394511,0.00842918,3134.8,3134.5,3.2078]
[1763398395219,0.00842918,3134.8,3134.1,0.0085259]
[1763398395814,3.2078,3134.5,3134.1,0.0085259]
[1763398396322,0.00842918,3134.8,3134.3,3.2078]
[1763398396720,0.00842918,3134.8,3134.1,0.0085259]
[1763398397230,0.00842918,3134.8,3134.3,3.2078]
[1763398397615,0.00842918,3134.8,3134.1,0.0085259]
[1763398397924,3.21622918,3134.8,3134.1,0.0085259]
[1763398398327,3.2078,3134.4,3134.1,0.0085259]
[1763398400223,3.21622918,3134.8,3134.1,0.0085259]
[1763398400431,3.21622918,3134.8,3134.4,3.2078]
[1763398401519,3.21622918,3134.8,3134.1,0.0085259]
[1763398401828,0.00842918,3134.8,3134.1,0.0085259]
[1763398402021,0.00842918,3134.8,3134.4,3.2078]
[1763398402428,3.2078,3134.5,3133.1,3.2078]
[1763398402728,3.2078,3133.8,3133.1,3.2078]
[1763398402921,3.2078,3134.4,3133.1,3.2078]
[1763398403120,3.2078,3134.4,3132.8,0.9537]
[1763398403121,3.2078,3134.4,3133.7,3.2078]
[1763398403428,3.21622918,3134.8,3134.1,3.2078]
[1763398403819,3.2078,3134.3,3133.2,3.2078]
[1763398404020,0.00842918,3134.8,3133.2,3.2078]
[1763398404021,3.2078,3133.8,3133.2,3.2078]
[1763398404218,3.2078,3134.6,3133.2,3.2078]
[1763398404429,3.2078,3134.1,3133.2,3.2078]
[1763398405625,0.00842918,3134.8,3132.8,0.9537]
[1763398405626,3.2078,3133.3,3132.8,0.9537]
[1763398405823,3.2078,3132.9,3132.0,0.9541]
[1763398406029,3.2078,3132.5,3131.9,3.2078]
[1763398406322,3.2078,3132.6,3131.9,3.2078]
[1763398406528,0.00478545,3132.5,3131.9,3.21258545]
[1763398406724,0.00478545,3132.5,3132.0,1.0167]
[1763398407026,3.2078,3133.3,3132.3,3.2078]
[1763398407228,3.2078,3133.4,3132.3,3.2078]
[1763398408025,0.00478545,3133.2,3132.0,1.01900215]
[1763398408526,3.2078,3133.0,3132.3,3.2078]
[1763398409727,0.00478545,3133.2,3132.3,3.2078]
[1763398410728,3.2078,3132.9,3132.3,3.2078]
[1763398411226,3.2078,3132.9,3132.0,0.00230215]
[1763398411826,3.2078,3132.1,3132.0,0.00230215]
[1763398412030,3.2078,3132.1,3131.9,0.00478545]
[1763398412430,3.2078,3132.1,3131.1,40.8]
[1763398412933,3.2078,3132.1,3131.4,3.2078]